[Event "*** Titled Tuesday Blitz"]
[Site "Chess.com"]
[Date "2019.04.02"]
[Round "2"]
[White "BasilSmash"]
[Black "MMSANCHEZ"]
[Result "0-1"]
[WhiteElo "2452"]
[BlackElo "2473"]
[TimeControl "180+2"]
[EndTime "14:23:04 PDT"]
[Termination "MMSANCHEZ won by resignation"]

1. e4 {[%clk 0:03:01.9]} 1... e6 {[%clk 0:03:00.3]} 2. d4 {[%clk 0:03:01.5]}
2... d5 {[%clk 0:03:01.8]} 3. Nd2 {[%clk 0:03:02.3]} 3... a6 {[%clk 0:03:02.4]}
4. Ngf3 {[%clk 0:03:00.6]} 4... Nf6 {[%clk 0:03:02.5]} 5. e5 {[%clk 0:02:57.5]}
5... Nfd7 {[%clk 0:03:03.5]} 6. Bd3 {[%clk 0:02:56.6]} 6... c5 {[%clk
0:03:04.9]} 7. c3 {[%clk 0:02:57.5]} 7... Nc6 {[%clk 0:03:06.3]} 8. O-O {[%clk
0:02:57.2]} 8... g5 {[%clk 0:03:04.2]} 9. Nb3 {[%clk 0:02:39.6]} 9... c4 {[%clk
0:02:41.4]} 10. Nxg5 {[%clk 0:02:32]} 10... cxd3 {[%clk 0:02:42.2]} 11. Nxe6
{[%clk 0:02:16.7]} 11... Qb6 {[%clk 0:02:32.4]} 12. Qh5 {[%clk 0:02:03.3]} 12...
Nf6 {[%clk 0:02:10.3]} 13. Qh4 {[%clk 0:01:28.8]} 13... Bxe6 {[%clk 0:01:54.8]}
14. Qxf6 {[%clk 0:01:29.3]} 14... Rg8 {[%clk 0:01:55.6]} 15. f4 {[%clk 0:01:30]}
15... Be7 {[%clk 0:01:53.9]} 16. Qh6 {[%clk 0:01:30.2]} 16... Bf5 {[%clk
0:01:51.1]} 17. Qh5 {[%clk 0:01:20.3]} 17... Be4 {[%clk 0:01:28.2]} 18. g4
{[%clk 0:01:14]} 18... Kf8 {[%clk 0:01:16.9]} 19. h3 {[%clk 0:01:09.5]} 19... a5
{[%clk 0:01:05.7]} 20. Kh2 {[%clk 0:01:09.4]} 20... a4 {[%clk 0:01:04.1]} 21.
Nc5 {[%clk 0:00:59.9]} 21... Bxc5 {[%clk 0:00:56.4]} 22. dxc5 {[%clk 0:01:01.8]}
22... Qxc5 {[%clk 0:00:57.5]} 23. f5 {[%clk 0:00:56.9]} 23... Nxe5 {[%clk
0:00:50.4]} 24. Qh6+ {[%clk 0:00:56.7]} 24... Ke8 {[%clk 0:00:49.8]} 25. Be3
{[%clk 0:00:52.7]} 25... Rxg4 {[%clk 0:00:32.1]} 26. hxg4 {[%clk 0:00:17.8]}
26... Nxg4+ {[%clk 0:00:32.7]} 27. Kg3 {[%clk 0:00:18.4]} 27... Qxe3+ {[%clk
0:00:33.7]} 28. Qxe3 {[%clk 0:00:20]} 28... Nxe3 {[%clk 0:00:35.1]} 29. Rg1
{[%clk 0:00:19.8]} 29... Nxf5+ {[%clk 0:00:23.6]} 30. Kf4 {[%clk 0:00:20.3]}
30... Ke7 {[%clk 0:00:24.8]} 31. c4 {[%clk 0:00:18.2]} 31... Nd6 {[%clk
0:00:19.2]} 32. cxd5 {[%clk 0:00:15.7]} 32... Ra5 {[%clk 0:00:19.8]} 33. Rae1
{[%clk 0:00:14.1]} 33... f5 {[%clk 0:00:19.4]} 34. Rg7+ {[%clk 0:00:13.8]} 34...
Kf6 {[%clk 0:00:20.6]} 35. Rxh7 {[%clk 0:00:14.6]} 35... Rxd5 {[%clk 0:00:20.3]}
36. Rg1 {[%clk 0:00:14.1]} 36... Nf7 {[%clk 0:00:15.3]} 37. Rgg7 {[%clk
0:00:10.7]} 37... Ne5 {[%clk 0:00:16.5]} 38. Rxb7 {[%clk 0:00:10.3]} 38... Ng6+
{[%clk 0:00:15.5]} 39. Ke3 {[%clk 0:00:10.9]} 39... d2 {[%clk 0:00:17]} 40. Rb6+
{[%clk 0:00:11.3]} 40... Kg5 {[%clk 0:00:16.9]} 41. Rg7 {[%clk 0:00:11]} 41...
Rd3+ {[%clk 0:00:13.4]} 42. Kf2 {[%clk 0:00:11.3]} 42... f4 {[%clk 0:00:13.9]}
43. Rb5+ {[%clk 0:00:03.5]} 43... Bf5 {[%clk 0:00:15.1]} 0-1

[Event "*** Titled Tuesday Blitz"]
[Site "Chess.com"]
[Date "2019.04.02"]
[Round "2"]
[White "biostatistician"]
[Black "GataKamsky1974"]
[Result "1/2-1/2"]
[WhiteElo "2563"]
[BlackElo "2756"]
[TimeControl "180+2"]
[EndTime "14:23:15 PDT"]
[Termination "Game drawn by repetition"]

1. d4 {[%clk 0:03:01.7]} 1... d5 {[%clk 0:02:59.5]} 2. Nf3 {[%clk 0:03:03.6]}
2... Nf6 {[%clk 0:03:00]} 3. c4 {[%clk 0:03:05.5]} 3... c6 {[%clk 0:03:01.4]} 4.
cxd5 {[%clk 0:03:06.6]} 4... cxd5 {[%clk 0:03:02]} 5. Nc3 {[%clk 0:03:08.5]}
5... Nc6 {[%clk 0:03:01.7]} 6. Bf4 {[%clk 0:03:10.1]} 6... a6 {[%clk 0:03:02.2]}
7. Rc1 {[%clk 0:03:10.9]} 7... e6 {[%clk 0:03:00.4]} 8. e3 {[%clk 0:03:11.4]}
8... Bd6 {[%clk 0:03:01.4]} 9. Bxd6 {[%clk 0:03:12.7]} 9... Qxd6 {[%clk
0:03:02]} 10. Be2 {[%clk 0:03:14.1]} 10... O-O {[%clk 0:03:03]} 11. O-O {[%clk
0:03:15.6]} 11... Bd7 {[%clk 0:03:04.3]} 12. Na4 {[%clk 0:03:16.2]} 12... Rab8
{[%clk 0:03:01.4]} 13. Nc5 {[%clk 0:03:16.6]} 13... Rfd8 {[%clk 0:02:55.7]} 14.
a3 {[%clk 0:03:16.3]} 14... Be8 {[%clk 0:02:56.6]} 15. b4 {[%clk 0:03:16.7]}
15... a5 {[%clk 0:02:55.6]} 16. b5 {[%clk 0:03:13.4]} 16... Na7 {[%clk
0:02:53.6]} 17. a4 {[%clk 0:03:14.1]} 17... b6 {[%clk 0:02:54.3]} 18. Na6 {[%clk
0:03:04.1]} 18... Rbc8 {[%clk 0:02:55.3]} 19. Qb3 {[%clk 0:03:05.4]} 19... Ne4
{[%clk 0:02:53.1]} 20. Bd3 {[%clk 0:02:58.6]} 20... Nf6 {[%clk 0:02:43.3]} 21.
Ne5 {[%clk 0:02:57.9]} 21... Qe7 {[%clk 0:02:32.1]} 22. h3 {[%clk 0:02:53.4]}
22... h6 {[%clk 0:02:31.7]} 23. Qb2 {[%clk 0:02:52.2]} 23... Rxc1 {[%clk
0:02:29.8]} 24. Rxc1 {[%clk 0:02:53]} 24... Rc8 {[%clk 0:02:31.7]} 25. Rxc8
{[%clk 0:02:52.9]} 25... Nxc8 {[%clk 0:02:32.2]} 26. Qc3 {[%clk 0:02:54.6]}
26... Nd6 {[%clk 0:02:25]} 27. f3 {[%clk 0:02:34.2]} 27... Qd8 {[%clk
0:02:15.7]} 28. g4 {[%clk 0:02:18.3]} 28... Qc8 {[%clk 0:02:14.6]} 29. Qxc8
{[%clk 0:02:18.5]} 29... Nxc8 {[%clk 0:02:14.8]} 30. Kf2 {[%clk 0:02:16.1]}
30... Kf8 {[%clk 0:02:14.7]} 31. e4 {[%clk 0:02:16.3]} 31... g5 {[%clk 0:02:14]}
32. Ke3 {[%clk 0:02:15.6]} 32... Ke7 {[%clk 0:02:13.6]} 33. Bc2 {[%clk
0:02:03.7]} 33... Na7 {[%clk 0:02:08]} 34. Bb3 {[%clk 0:01:59.2]} 34... Kd6
{[%clk 0:01:45.2]} 35. Nxf7+ {[%clk 0:01:45.9]} 35... Bxf7 {[%clk 0:01:45.5]}
36. e5+ {[%clk 0:01:47.4]} 36... Ke7 {[%clk 0:01:46.2]} 37. exf6+ {[%clk
0:01:47.9]} 37... Kxf6 {[%clk 0:01:47.4]} 38. f4 {[%clk 0:01:49.8]} 38... Nc8
{[%clk 0:01:38.9]} 39. Bc2 {[%clk 0:01:15.9]} 39... Ke7 {[%clk 0:01:37.3]} 40.
Kf3 {[%clk 0:01:09.2]} 40... Kd6 {[%clk 0:01:33.8]} 41. Kg3 {[%clk 0:01:08.4]}
41... Ne7 {[%clk 0:01:33.2]} 42. h4 {[%clk 0:01:08.1]} 42... gxf4+ {[%clk
0:01:29.3]} 43. Kxf4 {[%clk 0:01:09.3]} 43... Bg6 {[%clk 0:01:30.5]} 44. Bd1
{[%clk 0:01:04.4]} 44... Bd3 {[%clk 0:01:26.9]} 45. h5 {[%clk 0:01:03.5]} 45...
Be4 {[%clk 0:01:20.5]} 46. Nb8 {[%clk 0:00:57]} 46... Kc7 {[%clk 0:01:12.1]} 47.
Na6+ {[%clk 0:00:53.3]} 47... Kd6 {[%clk 0:01:13.3]} 48. Nb8 {[%clk 0:00:28.4]}
48... Kc7 {[%clk 0:01:13.5]} 49. Na6+ {[%clk 0:00:24.8]} 49... Kd6 {[%clk
0:01:14.4]} 50. Nb8 {[%clk 0:00:25.2]} 50... Kc7 {[%clk 0:00:53.8]} 51. Na6+
{[%clk 0:00:12.2]} 51... Kd6 {[%clk 0:00:54.6]} 52. Nb8 {[%clk 0:00:13.5]} 52...
Kc7 {[%clk 0:00:55.3]} 53. Na6+ {[%clk 0:00:14.1]} 53... Kd6 {[%clk 0:00:56.5]}
1/2-1/2

[Event "*** Titled Tuesday Blitz"]
[Site "Chess.com"]
[Date "2019.04.02"]
[Round "2"]
[White "SaraciNderim"]
[Black "adriangschnitzer"]
[Result "1-0"]
[WhiteElo "2736"]
[BlackElo "2395"]
[TimeControl "180+2"]
[EndTime "14:23:22 PDT"]
[Termination "SaraciNderim won by resignation"]

1. e4 {[%clk 0:03:00.3]} 1... c5 {[%clk 0:02:58.3]} 2. Nf3 {[%clk 0:03:00.9]}
2... Nc6 {[%clk 0:02:59.3]} 3. d4 {[%clk 0:03:02.1]} 3... cxd4 {[%clk
0:02:59.8]} 4. Nxd4 {[%clk 0:03:04]} 4... g6 {[%clk 0:02:59.6]} 5. c4 {[%clk
0:03:04.8]} 5... Bg7 {[%clk 0:03:00.4]} 6. Be3 {[%clk 0:03:06.3]} 6... Nf6
{[%clk 0:03:01.1]} 7. Nc3 {[%clk 0:03:07.7]} 7... Ng4 {[%clk 0:03:02.1]} 8. Qxg4
{[%clk 0:03:05.9]} 8... Nxd4 {[%clk 0:03:03.2]} 9. Qd1 {[%clk 0:03:07.5]} 9...
Ne6 {[%clk 0:03:04.7]} 10. Qd2 {[%clk 0:03:08]} 10... Qa5 {[%clk 0:03:05.3]} 11.
Rc1 {[%clk 0:03:00.9]} 11... b6 {[%clk 0:03:06.2]} 12. Be2 {[%clk 0:02:57.4]}
12... Bb7 {[%clk 0:03:06.4]} 13. f3 {[%clk 0:02:29.2]} 13... g5 {[%clk
0:03:06.8]} 14. O-O {[%clk 0:02:28.3]} 14... h5 {[%clk 0:03:07.1]} 15. Rfd1
{[%clk 0:02:27.9]} 15... Bc6 {[%clk 0:03:01.9]} 16. a3 {[%clk 0:02:25.4]} 16...
Qe5 {[%clk 0:03:02]} 17. b4 {[%clk 0:02:19.3]} 17... d6 {[%clk 0:03:00.5]} 18.
Nd5 {[%clk 0:02:06.9]} 18... Kf8 {[%clk 0:02:52]} 19. h4 {[%clk 0:01:43.9]}
19... f6 {[%clk 0:02:18.4]} 20. hxg5 {[%clk 0:01:16.7]} 20... fxg5 {[%clk
0:02:17.8]} 21. Rf1 {[%clk 0:01:13.5]} 21... Bxd5 {[%clk 0:02:09.4]} 22. cxd5
{[%clk 0:01:13.9]} 22... Nf4 {[%clk 0:02:10.3]} 23. Ba6 {[%clk 0:01:11.9]} 23...
h4 {[%clk 0:02:06.2]} 24. Rc4 {[%clk 0:01:09.9]} 24... h3 {[%clk 0:01:30.1]} 25.
g3 {[%clk 0:01:03.5]} 25... Ng6 {[%clk 0:01:17.1]} 26. f4 {[%clk 0:01:04.4]}
26... gxf4 {[%clk 0:01:13.6]} 27. gxf4 {[%clk 0:00:57.7]} 27... Qh5 {[%clk
0:01:12]} 28. e5 {[%clk 0:00:35]} 28... Nh4 {[%clk 0:01:04.8]} 29. Kh1 {[%clk
0:00:29.8]} 29... Qg4 {[%clk 0:01:01.3]} 30. Rfc1 {[%clk 0:00:13.6]} 30... Qf3+
{[%clk 0:00:46.7]} 31. Kh2 {[%clk 0:00:13.7]} 31... Qg4 {[%clk 0:00:25.4]} 32.
Kh1 {[%clk 0:00:11.9]} 32... Qf3+ {[%clk 0:00:21.1]} 33. Kh2 {[%clk 0:00:13]}
33... Nf5 {[%clk 0:00:22.7]} 34. Rc8+ {[%clk 0:00:13.6]} 34... Rxc8 {[%clk
0:00:23.9]} 35. Rxc8+ {[%clk 0:00:15.5]} 35... Kf7 {[%clk 0:00:25.4]} 36. Rxh8
{[%clk 0:00:16.5]} 36... Bxh8 {[%clk 0:00:27.3]} 37. e6+ {[%clk 0:00:15.5]}
37... Kf8 {[%clk 0:00:26.3]} 38. Bg1 {[%clk 0:00:13.8]} 38... Qg3+ {[%clk
0:00:23.8]} 39. Kh1 {[%clk 0:00:14.9]} 39... Nh4 {[%clk 0:00:21.3]} 40. Qf2
{[%clk 0:00:13.9]} 40... Qg4 {[%clk 0:00:20.4]} 41. Be2 {[%clk 0:00:14.3]} 41...
Qg2+ {[%clk 0:00:18.7]} 42. Qxg2 {[%clk 0:00:15.4]} 42... Nxg2 {[%clk
0:00:20.4]} 43. Bh2 {[%clk 0:00:13.5]} 43... Bb2 {[%clk 0:00:21.5]} 44. Bf1
{[%clk 0:00:14.5]} 44... Bxa3 {[%clk 0:00:21.2]} 45. b5 {[%clk 0:00:15.9]} 45...
Bc1 {[%clk 0:00:18.2]} 46. Bxg2 {[%clk 0:00:17.1]} 46... hxg2+ {[%clk
0:00:20.1]} 47. Kxg2 {[%clk 0:00:19]} 47... Kg7 {[%clk 0:00:20.9]} 48. Kf3
{[%clk 0:00:20.4]} 48... Kf6 {[%clk 0:00:22.8]} 49. Ke4 {[%clk 0:00:21.5]} 49...
Bd2 {[%clk 0:00:23.6]} 50. Bg1 {[%clk 0:00:22.7]} 50... Bc1 {[%clk 0:00:25.1]}
51. Bd4+ {[%clk 0:00:23.8]} 51... Kg6 {[%clk 0:00:26.5]} 52. f5+ {[%clk
0:00:25.7]} 52... Kg5 {[%clk 0:00:28]} 53. f6 {[%clk 0:00:25.9]} 1-0

[Event "*** Titled Tuesday Blitz"]
[Site "Chess.com"]
[Date "2019.04.02"]
[Round "2"]
[White "nubair1198"]
[Black "Thee-Chessboy"]
[Result "1-0"]
[WhiteElo "2654"]
[BlackElo "2403"]
[TimeControl "180+2"]
[EndTime "14:23:22 PDT"]
[Termination "nubair1198 won by resignation"]

1. d4 {[%clk 0:03:01.9]} 1... Nf6 {[%clk 0:02:54.4]} 2. c4 {[%clk 0:03:03.3]}
2... g6 {[%clk 0:02:55.7]} 3. Nc3 {[%clk 0:03:04.8]} 3... Bg7 {[%clk 0:02:57.1]}
4. e4 {[%clk 0:03:06.3]} 4... d6 {[%clk 0:02:58.4]} 5. Nf3 {[%clk 0:03:07.8]}
5... O-O {[%clk 0:02:59.3]} 6. Be2 {[%clk 0:03:09.4]} 6... e5 {[%clk 0:02:59]}
7. O-O {[%clk 0:03:10.5]} 7... Nbd7 {[%clk 0:02:59.4]} 8. Be3 {[%clk 0:03:10.9]}
8... h6 {[%clk 0:02:59]} 9. h3 {[%clk 0:02:52.9]} 9... c6 {[%clk 0:02:53.1]} 10.
Qd2 {[%clk 0:02:53.4]} 10... Kh7 {[%clk 0:02:53.4]} 11. b4 {[%clk 0:02:53.8]}
11... Nh5 {[%clk 0:02:52.3]} 12. Rad1 {[%clk 0:02:48.6]} 12... Qf6 {[%clk
0:02:48]} 13. c5 {[%clk 0:02:45]} 13... dxc5 {[%clk 0:02:35]} 14. dxe5 {[%clk
0:02:24.7]} 14... Nxe5 {[%clk 0:02:28.8]} 15. Bxc5 {[%clk 0:02:26]} 15... Re8
{[%clk 0:02:24.7]} 16. Nxe5 {[%clk 0:02:08.2]} 16... Qxe5 {[%clk 0:02:25.1]} 17.
Bd4 {[%clk 0:02:09.6]} 17... Qxd4 {[%clk 0:02:22.4]} 18. Qxd4 {[%clk 0:02:11.5]}
18... Bxd4 {[%clk 0:02:23.1]} 19. Rxd4 {[%clk 0:02:13.4]} 19... Nf4 {[%clk
0:02:23.5]} 20. Bc4 {[%clk 0:02:10.7]} 20... Kg7 {[%clk 0:02:11.7]} 21. Rfd1
{[%clk 0:02:08]} 21... Be6 {[%clk 0:01:58.8]} 22. Bxe6 {[%clk 0:02:07.5]} 22...
Rxe6 {[%clk 0:01:53.9]} 23. Rd7 {[%clk 0:01:56.5]} 23... b5 {[%clk 0:01:52.8]}
24. Rc7 {[%clk 0:01:30.3]} 24... a5 {[%clk 0:01:12.1]} 25. a3 {[%clk 0:01:28.3]}
25... axb4 {[%clk 0:01:12.1]} 26. axb4 {[%clk 0:01:30.2]} 26... Ra3 {[%clk
0:01:09.5]} 27. Rdd7 {[%clk 0:01:31.6]} 27... Rxc3 {[%clk 0:00:49.1]} 28. Rxf7+
{[%clk 0:01:30.9]} 28... Kg8 {[%clk 0:00:49.6]} 29. Rxf4 {[%clk 0:01:28.1]}
29... Rc1+ {[%clk 0:00:40.4]} 30. Kh2 {[%clk 0:01:26.9]} 30... Rc4 {[%clk
0:00:41.7]} 31. f3 {[%clk 0:01:21.5]} 31... Rxb4 {[%clk 0:00:39.9]} 32. Rff7
{[%clk 0:01:22.1]} 32... Rd4 {[%clk 0:00:37.7]} 33. Rg7+ {[%clk 0:01:23.5]}
33... Kf8 {[%clk 0:00:38.1]} 34. Rh7 {[%clk 0:01:25.4]} 34... Kg8 {[%clk
0:00:36]} 35. Rcg7+ {[%clk 0:01:26.8]} 35... Kf8 {[%clk 0:00:36.8]} 36. Rb7
{[%clk 0:01:25]} 36... Kg8 {[%clk 0:00:37]} 37. Rxh6 {[%clk 0:01:26.6]} 37... b4
{[%clk 0:00:34.3]} 38. h4 {[%clk 0:01:16.7]} 38... c5 {[%clk 0:00:25.7]} 39. h5
{[%clk 0:01:16.9]} 39... Rdd6 {[%clk 0:00:26.2]} 40. Rc7 {[%clk 0:01:12.2]}
40... Rc6 {[%clk 0:00:25]} 41. Rb7 {[%clk 0:00:52.4]} 41... gxh5 {[%clk
0:00:25]} 42. Rxh5 {[%clk 0:00:53.2]} 42... Rh6 {[%clk 0:00:25]} 43. Rxh6 {[%clk
0:00:51.8]} 43... Rxh6+ {[%clk 0:00:26.9]} 44. Kg3 {[%clk 0:00:53.7]} 44... Rd6
{[%clk 0:00:22.4]} 45. e5 {[%clk 0:00:54.6]} 45... Rd2 {[%clk 0:00:21.7]} 46. f4
{[%clk 0:00:53.4]} 46... Rb2 {[%clk 0:00:22.5]} 47. f5 {[%clk 0:00:54.2]} 47...
c4 {[%clk 0:00:23.9]} 48. f6 {[%clk 0:00:50.7]} 48... b3 {[%clk 0:00:21.5]} 49.
e6 {[%clk 0:00:48.8]} 49... Re2 {[%clk 0:00:21.8]} 50. Rb8+ {[%clk 0:00:47.2]}
50... Kh7 {[%clk 0:00:22.3]} 51. f7 {[%clk 0:00:48]} 1-0

[Event "*** Titled Tuesday Blitz"]
[Site "Chess.com"]
[Date "2019.04.02"]
[Round "2"]
[White "Fandorine"]
[Black "Witik"]
[Result "1-0"]
[WhiteElo "2858"]
[BlackElo "2621"]
[TimeControl "180+2"]
[EndTime "14:23:26 PDT"]
[Termination "Fandorine won by resignation"]

1. e4 {[%clk 0:03:01.9]} 1... c6 {[%clk 0:03:00]} 2. d4 {[%clk 0:03:02.8]} 2...
d5 {[%clk 0:03:01.5]} 3. e5 {[%clk 0:03:02.7]} 3... Bf5 {[%clk 0:03:02.3]} 4. h4
{[%clk 0:03:04.2]} 4... Qb6 {[%clk 0:02:54.9]} 5. g4 {[%clk 0:02:58]} 5... Bd7
{[%clk 0:02:55.2]} 6. Nc3 {[%clk 0:02:59.1]} 6... h5 {[%clk 0:02:54.8]} 7. gxh5
{[%clk 0:02:47.7]} 7... Bf5 {[%clk 0:02:45.1]} 8. Na4 {[%clk 0:02:07.6]} 8...
Qc7 {[%clk 0:02:40.3]} 9. Nc5 {[%clk 0:02:04.1]} 9... e6 {[%clk 0:02:31.5]} 10.
Nd3 {[%clk 0:02:05.3]} 10... Nh6 {[%clk 0:02:08.6]} 11. c3 {[%clk 0:01:52.3]}
11... Nd7 {[%clk 0:02:07]} 12. Nh3 {[%clk 0:01:26]} 12... O-O-O {[%clk
0:02:04.5]} 13. Bf4 {[%clk 0:01:20.4]} 13... c5 {[%clk 0:01:58.4]} 14. Qd2
{[%clk 0:01:17.2]} 14... c4 {[%clk 0:01:54.4]} 15. Nc1 {[%clk 0:01:09.6]} 15...
Be4 {[%clk 0:01:51.6]} 16. Rg1 {[%clk 0:01:08.3]} 16... Nf5 {[%clk 0:01:52.2]}
17. Ng5 {[%clk 0:00:53.8]} 17... Nxh4 {[%clk 0:01:44.7]} 18. Be2 {[%clk
0:00:55.3]} 18... Nb6 {[%clk 0:01:30.9]} 19. Nxe4 {[%clk 0:00:46.1]} 19... dxe4
{[%clk 0:01:32.2]} 20. Qe3 {[%clk 0:00:47.3]} 20... Qc6 {[%clk 0:01:20.3]} 21.
Bg5 {[%clk 0:00:44.2]} 21... Nf5 {[%clk 0:01:21.2]} 22. Qf4 {[%clk 0:00:40.2]}
22... Rd7 {[%clk 0:01:18.5]} 23. a4 {[%clk 0:00:39.7]} 23... f6 {[%clk
0:01:06.2]} 24. exf6 {[%clk 0:00:37]} 24... Bd6 {[%clk 0:00:57.5]} 25. Qg4
{[%clk 0:00:37.8]} 25... e3 {[%clk 0:00:55.1]} 26. Bxe3 {[%clk 0:00:26.3]} 26...
gxf6 {[%clk 0:00:55.5]} 27. Bd2 {[%clk 0:00:21]} 27... Rg7 {[%clk 0:00:54.1]}
28. Qxg7 {[%clk 0:00:21.1]} 28... Nxg7 {[%clk 0:00:55.5]} 29. Rxg7 {[%clk
0:00:23]} 29... Qh1+ {[%clk 0:00:55.8]} 30. Bf1 {[%clk 0:00:24.5]} 30... Rxh5
{[%clk 0:00:54.4]} 31. Ne2 {[%clk 0:00:25.8]} 31... Qc6 {[%clk 0:00:46.4]} 32.
a5 {[%clk 0:00:24.6]} 32... Nd5 {[%clk 0:00:45.9]} 33. a6 {[%clk 0:00:25.7]}
33... Rh1 {[%clk 0:00:38.3]} 34. axb7+ {[%clk 0:00:25.5]} 34... Kb8 {[%clk
0:00:39.8]} 35. Ng1 {[%clk 0:00:19.5]} 35... Bc7 {[%clk 0:00:39.9]} 36. O-O-O
{[%clk 0:00:19.2]} 36... Kxb7 {[%clk 0:00:39]} 37. Bg2 {[%clk 0:00:20.2]} 37...
Rh2 {[%clk 0:00:38]} 38. Bxd5 {[%clk 0:00:12.1]} 38... Qxd5 {[%clk 0:00:32.1]}
39. Rxc7+ {[%clk 0:00:09.8]} 39... Kxc7 {[%clk 0:00:31.5]} 40. Bf4+ {[%clk
0:00:11.3]} 40... Kd7 {[%clk 0:00:31.2]} 41. Bxh2 {[%clk 0:00:12.3]} 41... Qg5+
{[%clk 0:00:30.6]} 42. Kb1 {[%clk 0:00:04.7]} 42... Qf5+ {[%clk 0:00:31.7]} 43.
Ka1 {[%clk 0:00:04.5]} 43... Qa5+ {[%clk 0:00:32]} 44. Kb1 {[%clk 0:00:04.8]}
44... Qf5+ {[%clk 0:00:33.9]} 45. Ka1 {[%clk 0:00:05.6]} 45... Qxf2 {[%clk
0:00:35.8]} 46. Bb8 {[%clk 0:00:05.1]} 46... a5 {[%clk 0:00:34.9]} 47. Kb1
{[%clk 0:00:03.8]} 47... a4 {[%clk 0:00:35.1]} 48. Kc1 {[%clk 0:00:05]} 48...
Kc6 {[%clk 0:00:33.9]} 49. Ba7 {[%clk 0:00:05.2]} 49... a3 {[%clk 0:00:34.4]}
50. d5+ {[%clk 0:00:06]} 50... exd5 {[%clk 0:00:32.8]} 51. Bxf2 {[%clk
0:00:07.6]} 51... a2 {[%clk 0:00:34.3]} 52. Kc2 {[%clk 0:00:08.8]} 1-0

[Event "*** Titled Tuesday Blitz"]
[Site "Chess.com"]
[Date "2019.04.02"]
[Round "2"]
[White "Saitama_Hero"]
[Black "tteshan"]
[Result "1-0"]
[WhiteElo "2231"]
[BlackElo "2212"]
[TimeControl "180+2"]
[EndTime "14:23:30 PDT"]
[Termination "Saitama_Hero won by checkmate"]

1. c4 {[%clk 0:03:01.9]} 1... c5 {[%clk 0:03:00.5]} 2. Nf3 {[%clk 0:02:57.2]}
2... Nc6 {[%clk 0:03:01.4]} 3. Nc3 {[%clk 0:02:55.9]} 3... g6 {[%clk 0:03:02.4]}
4. e3 {[%clk 0:02:56.1]} 4... Bg7 {[%clk 0:03:03.1]} 5. d4 {[%clk 0:02:57.6]}
5... cxd4 {[%clk 0:03:01.2]} 6. exd4 {[%clk 0:02:59.5]} 6... e6 {[%clk 0:03:02]}
7. d5 {[%clk 0:02:53.4]} 7... Ne5 {[%clk 0:02:43.8]} 8. Nxe5 {[%clk 0:02:52]}
8... Bxe5 {[%clk 0:02:45.7]} 9. Bd3 {[%clk 0:02:50.6]} 9... Ne7 {[%clk
0:02:40.3]} 10. Bh6 {[%clk 0:02:47.5]} 10... d6 {[%clk 0:02:38.4]} 11. O-O
{[%clk 0:02:43.5]} 11... Nf5 {[%clk 0:02:34.5]} 12. Bxf5 {[%clk 0:02:39.2]}
12... gxf5 {[%clk 0:02:36.4]} 13. Qh5 {[%clk 0:02:36.7]} 13... Rg8 {[%clk
0:02:29.5]} 14. Rae1 {[%clk 0:02:23.5]} 14... Qf6 {[%clk 0:02:25.2]} 15. Nb5
{[%clk 0:02:19.9]} 15... Kd7 {[%clk 0:01:59.2]} 16. c5 {[%clk 0:01:50]} 16... a6
{[%clk 0:01:38.5]} 17. Nxd6 {[%clk 0:01:21.9]} 17... Bxd6 {[%clk 0:01:34.4]} 18.
cxd6 {[%clk 0:01:23.8]} 18... b6 {[%clk 0:01:24.6]} 19. dxe6+ {[%clk 0:01:16.4]}
19... fxe6 {[%clk 0:01:26.5]} 20. Be3 {[%clk 0:01:06.9]} 20... Bb7 {[%clk
0:01:24.3]} 21. f3 {[%clk 0:01:01.7]} 21... Rac8 {[%clk 0:01:10.6]} 22. Bxb6
{[%clk 0:00:56.2]} 22... Rc2 {[%clk 0:01:10.7]} 23. Bf2 {[%clk 0:00:56.3]} 23...
Qg7 {[%clk 0:01:02.8]} 24. g3 {[%clk 0:00:42.2]} 24... f4 {[%clk 0:00:47.3]} 25.
Qh3 {[%clk 0:00:39.4]} 25... Bd5 {[%clk 0:00:43.3]} 26. g4 {[%clk 0:00:26.1]}
26... Qxb2 {[%clk 0:00:42.9]} 27. Qxh7+ {[%clk 0:00:24.2]} 27... Rg7 {[%clk
0:00:44.1]} 28. Qd3 {[%clk 0:00:20.8]} 28... Bc4 {[%clk 0:00:41.2]} 29. Qd4
{[%clk 0:00:20.3]} 29... Bxf1 {[%clk 0:00:34.3]} 30. Qxb2 {[%clk 0:00:19.7]}
30... Rxb2 {[%clk 0:00:32.8]} 31. Bd4 {[%clk 0:00:21.6]} 31... Rg2+ {[%clk
0:00:33.6]} 32. Kxf1 {[%clk 0:00:22.1]} 32... Rxh2 {[%clk 0:00:31.5]} 33. Bxg7
{[%clk 0:00:21.5]} 33... Rxa2 {[%clk 0:00:32.8]} 34. Be5 {[%clk 0:00:19.6]}
34... a5 {[%clk 0:00:31.9]} 35. Bxf4 {[%clk 0:00:18.9]} 35... Ra3 {[%clk
0:00:30.6]} 36. Re3 {[%clk 0:00:18.9]} 36... Ra1+ {[%clk 0:00:31.1]} 37. Kf2
{[%clk 0:00:18.2]} 37... a4 {[%clk 0:00:32.1]} 38. Rc3 {[%clk 0:00:18.5]} 38...
a3 {[%clk 0:00:32]} 39. Rc7+ {[%clk 0:00:19.3]} 39... Ke8 {[%clk 0:00:31.1]} 40.
Bg5 {[%clk 0:00:20.1]} 40... Rd1 {[%clk 0:00:30]} 41. Re7+ {[%clk 0:00:12.6]}
41... Kf8 {[%clk 0:00:28.9]} 42. Ra7 {[%clk 0:00:13.6]} 42... Ke8 {[%clk
0:00:25.6]} 43. Be7 {[%clk 0:00:08.8]} 43... Rd3 {[%clk 0:00:22.1]} 44. Ke2
{[%clk 0:00:09.5]} 44... Rb3 {[%clk 0:00:22.5]} 45. g5 {[%clk 0:00:10.7]} 45...
Rb2+ {[%clk 0:00:23.2]} 46. Ke3 {[%clk 0:00:10.5]} 46... a2 {[%clk 0:00:24.4]}
47. Kf4 {[%clk 0:00:12.1]} 47... Rb4+ {[%clk 0:00:24.6]} 48. Ke5 {[%clk
0:00:11]} 48... Rb5+ {[%clk 0:00:18.6]} 49. Kxe6 {[%clk 0:00:11.9]} 49... a1=Q
{[%clk 0:00:16.3]} 50. d7# {[%clk 0:00:10.3]} 1-0